Cogmind - Beta 13 @@@ ROGUE MODE // 2024.06.18 @ 18:18:36 Player: Gabe+Kate4EVR Result: Destroyed by P-60 Hacker with Shock Rifle Performance ------------- Evolutions (4) 2000 Regions Visited (7) 1400 Robots Destroyed (57) 285 Value Destroyed (1575) 1575 Prototype IDs (7) 140 Alien Tech Used (0) 0 Bonus (585) 585 TOTAL SCORE: 5985 Bonus ------- High Alert Combat Kills 34 Follower Combat Kills 51 Entered DSFs 500 Cogmind --------- Core Integrity 0/850 Matter 219/300 Energy 150/150 System Corruption 1% Temperature Cool (0) Movement Flying (112) Ox1 Location -6/Factory Parts ------- > --- POWER (2) -------- Micro Nuclear Core > --- PROPULSION (6) --- VTOL Module Cooled Cesium-ion Thruster > --- UTILITY (5) ------ Advanced Heat Sink Enhanced Optical Array Advanced Signal Interpreter Thermal Defense Suite > --- WEAPON (2) ------- (None) > --- INVENTORY (5) ---- Flexi-carbon Leg Energy Filter Improved Field Recycling Unit (0) Rocket Launcher Chainsword Peak State ------------ > --- POWER ------------ Angular Momentum Engine > --- PROPULSION ------- Hovering Gravmag-Armored Exoskeleton Improved Flight Unit Improved Flight Unit Improved Flight Unit Improved Flight Unit Improved Flight Unit > --- UTILITY ---------- Scrap Engine Advanced Heat Sink Medium Storage Unit Enhanced Optical Array > --- WEAPON ----------- (None) > --- INVENTORY -------- Heavy Ion Engine Deuterium Engine Deuterium Engine Micro Nuclear Core Weight Redist. System Energy Filter Improved Field Recycling Unit Autogun Rocket Launcher Heavy Hammer [Rating: 55] Favorites ----------- Power Light Ion Engine Engine Light Ion Engine Power Core Micro Nuclear Core Propulsion Aluminum Leg Leg Aluminum Leg Hover Unit Constructs Flight Unit Improved Flight Unit Utility Medium Storage Unit Device Heat Sink Storage Medium Storage Unit Processor Enhanced Optical Array Hackware Hacking Suite Weapon Autogun Energy Gun EM Pulse Gun Energy Cannon Advanced Beam Cannon Ballistic Gun Autogun Impact Weapon Heavy Hammer Slashing Weapon Blade Saw Build | -11 -10 -9 -9 -9 -7 -7 -6 ------- Run | Yrd Mat Mat Sto Rec Fac DSF Fac Slots Evolved 8 | . . 2 . . 4 . 2 Power 1 | . . . . . 1 . . Propulsion 4 | . . 2 . . 2 . . Utility 3 | . . . . . 1 . 2 Weapon . | . . . . . . . . Parts Attached 97 | 6 5 5 34 9 7 1 30 Power 17 | 1 1 . 4 1 2 . 8 Engine 15 | 1 1 . 4 1 1 . 7 Core 2 | . . . . . 1 . 1 Reactor . | . . . . . . . . Propulsion 41 | 2 3 4 15 4 3 . 10 Treads . | . . . . . . . . Leg 21 | 2 3 4 12 . . . . Wheel . | . . . . . . . . Hover . | . . . . . . . . Flight 20 | . . . 3 4 3 . 10 Utility 24 | 1 1 . 6 4 2 1 9 Device 17 | . 1 . 4 3 1 1 7 Storage 3 | 1 . . 2 . . . . Processor 2 | . . . . . . . 2 Hackware 2 | . . . . 1 1 . . Protection . | . . . . . . . . Artifact . | . . . . . . . . Weapon 15 | 2 . 1 9 . . . 3 Energy Gun 3 | 2 . 1 . . . . . Energy Cannon 3 | . . . 3 . . . . Ballistic Gun 7 | . . . 6 . . . 1 Ballistic Cannon . | . . . . . . . . Launcher . | . . . . . . . . Special Weapon . | . . . . . . . . Impact Weapon 1 | . . . . . . . 1 Slashing Weapon 1 | . . . . . . . 1 Piercing Weapon . | . . . . . . . . Special Melee Weapon . | . . . . . . . . Unidentified Prototypes 6 | . . . 4 . . . 2 Corrupted Parts 7 | . 3 2 1 1 . . . System Corruption 22 | . 15 2 2 3 . . . Parts Lost 23 | . . . 4 . . 1 18 Power 3 | . . . . . . . 3 Propulsion 13 | . . . 2 . . 1 10 Utility 3 | . . . 1 . . . 2 Weapon 4 | . . . 1 . . . 3 Highest Loss Streak 12 | . . . 2 . . 1 12 To Critical Strikes . | . . . . . . . . Average Slot Usage (%) 91 | . 94 100 98 87 92 86 57 Engine 10 | . 14 11 11 11 8 7 2 Leg 23 | . 28 44 39 . . . . Flight 16 | . . . 4 43 46 44 24 Device 10 | . 8 11 10 10 8 7 9 Storage 10 | . 14 11 11 11 7 7 4 Energy Gun 5 | . 28 22 3 . . . . Energy Cannon 4 | . . . 8 . . . . Ballistic Gun 7 | . . . 9 11 7 5 . Naked Turns . | . . . . . . . . Heaviest Build 28 | 14 15 15 27 21 28 28 27 Greatest Support 40 | 20 20 40 40 25 29 29 35 Greatest Overweight (x) 5 | . . . 1 5 . . 3 Average Overweight (x) . | . . . . 1 . . . Largest Inventory Capacity 10 | 8 8 8 10 10 10 10 10 Average Capacity 9 | 6 8 8 9 10 10 10 8 Most Carried 10 | 2 8 8 10 10 9 10 10 Average Carried 8 | 1 6 6 9 9 8 9 6 Final Capacity 10 | 8 8 8 10 10 10 10 5 Final Carried 10 | 2 8 8 10 10 9 10 5 Scrap Engine Consumption 13 | . . . . . . 6 7 Constructs Created 2 | . . . . . . . 2 Class Distribution -------------------- 55% | Scavenger-Mutant 17% | Commander-Mutant 11% | Mutant 9% | Sprinter 6% | Commander-Sprinter Dominant Class ---------------- Mutant | -10/Materials Scavenger-Mutant | -9/Materials Scavenger-Mutant | -9/Storage Commander-Mutant | -9/Recycling Commander-Sprinter | -7/Factory Sprinter | -7/DSF Sprinter | -6/Factory Resources | -11 -10 -9 -9 -9 -7 -7 -6 ----------- Run | Yrd Mat Mat Sto Rec Fac DSF Fac Matter Collected 1406 | 230 96 56 630 86 . 115 193 Remotely . | . . . . . . . . Salvage Created 2506 | . 256 321 1639 . . . 290 Parts 151 | . 16 22 100 . . . 13 Haulers Intercepted 7 | . 1 . 6 . . . . Recyclers Shooed 1 | . . 1 . . . . . Parts Field Recycled . | . . . . . . . . Retrieved Matter . | . . . . . . . . Parts Self-Destructed . | . . . . . . . . Prevented . | . . . . . . . . Kills | -11 -10 -9 -9 -9 -7 -7 -6 ------- Run | Yrd Mat Mat Sto Rec Fac DSF Fac Combat Hostiles Destroyed 37 | . 4 1 25 . . . 7 Melee 3 | . . . . . . . 3 Guns 17 | . 4 1 9 . . . 3 Cannons 16 | . . . 16 . . . . Classes Destroyed 11 | . 3 3 5 . . . . Worker 2 | . 1 . . . . . 1 Builder 2 | . . 1 1 . . . . Hauler 7 | . 1 . 6 . . . . Recycler 3 | . . 3 . . . . . Mechanic 1 | . . . 1 . . . . Operator 3 | . . . 3 . . . . Watcher 2 | . . 1 1 . . . . Swarmer 6 | . . . 2 . . . 4 Grunt 16 | . 4 1 10 . . . 1 Brawler 1 | . . . 1 . . . . Sentry 14 | . . . 12 . . . 2 Best Kill Streak 6 | . 2 6 5 . . . 4 Combat Bots Only 4 | . 2 1 4 . . . 4 Max Kills in Single Turn 2 | . 1 2 1 . . . 1 Gunslinging . | . . . . . . . . Exploded . | . . . . . . . . Melee 1 | . . . . . . . 1 Uniques/NPCs Destroyed . | . . . . . . . . Combat | -11 -10 -9 -9 -9 -7 -7 -6 -------- Run | Yrd Mat Mat Sto Rec Fac DSF Fac Hostile Shots Fired 480 | . 19 1 125 . . 30 305 Missed 150 | . 6 . 30 . . 17 97 Damage Taken 3925 | . 170 12 1280 . . 175 2288 Core 1092 | . 15 . 215 . . 9 853 Absorbed by Shields 17 | . . . . . . 5 12 Regen/Repaired (Parts) 81 | . . . 81 . . . . Core Remaining (%) 84 | 100 94 . . 46 . 98 . Volleys Fired 152 | . 21 10 105 . . . 16 Largest 2 | . 2 2 2 . . . 1 Hottest 136 | . 90 90 136 . . . 23 Shots Fired 288 | . 43 19 210 . . . 16 Gun 217 | . 43 19 139 . . . 16 Cannon 71 | . . . 71 . . . . Launcher . | . . . . . . . . Special . | . . . . . . . . Kinetic 99 | . . . 83 . . . 16 Thermal 135 | . 22 9 104 . . . . Explosive . | . . . . . . . . Electromagnetic 54 | . 21 10 23 . . . . Robot Hit Streak 21 | . 7 6 21 . . . 6 Robot Miss Streak 5 | . 2 4 5 . . . 1 Penetration Max . | . . . . . . . . Secondary Targets . | . . . . . . . . Shots Hit Robots 217 | . 28 10 144 . . . 35 Core Hits 92 | . 11 9 59 . . . 13 Critical Kills . | . . . . . . . . Critical Parts Destroyed 1 | . . . . . . . 1 Critical Strikes 5 | . 2 . . . . . 3 Burn 1 | . 1 . . . . . . Corrupt 1 | . 1 . . . . . . Smash 1 | . . . . . . . 1 Sever 2 | . . . . . . . 2 Melee Attacks 27 | . . . . . . . 27 Impact 13 | . . . . . . . 13 Slashing 14 | . . . . . . . 14 Piercing . | . . . . . . . . Sneak Attacks . | . . . . . . . . Combat Hostiles . | . . . . . . . . Follow-up Attacks 1 | . . . . . . . 1 Damage Inflicted 3601 | . 369 178 2321 . . . 733 Guns 2032 | . 369 157 1309 . . . 197 Cannons 965 | . . . 965 . . . . Explosions 68 | . . 21 47 . . . . Melee 536 | . . . . . . . 536 Ramming . | . . . . . . . . Kinetic 1092 | . . . 895 . . . 197 Thermal 1502 | . 186 72 1244 . . . . Explosive . | . . . . . . . . Electromagnetic 471 | . 183 106 182 . . . . Impact 358 | . . . . . . . 358 Slashing 178 | . . . . . . . 178 Piercing . | . . . . . . . . Highest Corruption 15 | . 15 2 4 7 . . 1 Average Corruption 4 | . 14 1 3 4 . . 1 Corruption Purged . | . . . . . . . . Corruption Blocked . | . . . . . . . . Effects 61 | . 11 2 31 17 . . . Message Errors 14 | . 2 1 10 1 . . . Matter Fused 13 | . 2 1 6 4 . . . Heat Flow Errors 12 | . 2 . 8 2 . . . Energy Discharges 4 | . . . 1 3 . . . Parts Rejected 1 | . . . . 1 . . . Data Loss (minor) 6 | . 2 . . 4 . . . Data Loss (major) 2 | . 1 . . 1 . . . Misfires 5 | . 1 . 4 . . . . Alerts 2 | . 1 . . 1 . . . Weapon Failures 2 | . . . 2 . . . . Overload Shots . | . . . . . . . . Overflow Damage 43 | . . . . . . . 43 Projectiles . | . . . . . . . . Explosions . | . . . . . . . . Melee 43 | . . . . . . . 43 Knockbacks 5 | . . . . . . . 5 Impact 4 | . . . . . . . 4 Kinetic . | . . . . . . . . Secondary 1 | . . . . . . . 1 Self-Inflicted Damage . | . . . . . . . . Shots . | . . . . . . . . Rammed . | . . . . . . . . Targets Rammed . | . . . . . . . . Kicked . | . . . . . . . . Crushed . | . . . . . . . . Highest Temperature 344 | . 291 . 344 92 5 . 55 Average Temperature 94 | . 113 . 110 44 4 . 31 Received Heat Transfer 1065 | . 99 6 480 . . 51 429 Effects 1 | . . . 1 . . . . Shutdowns 1 | . . . 1 . . . . Siege Activations . | . . . . . . . . Robots Corrupted . | . . . . . . . . Combat Hostiles . | . . . . . . . . Parts Fried 2 | . . . 1 . . . 1 Impact Corruptions 3 | . . . . . . . 3 Robots Melted . | . . . . . . . . Combat Hostiles . | . . . . . . . . Parts Melted 2 | . . 1 1 . . . . Heat Transferred 3141 | . 629 198 2314 . . . . Parts Sabotaged . | . . . . . . . . Parts Stolen . | . . . . . . . . Parts Stripped . | . . . . . . . . Power Chain Reactions 2 | . . 1 1 . . . . Alert | -11 -10 -9 -9 -9 -7 -7 -6 ------- Run | Yrd Mat Mat Sto Rec Fac DSF Fac Peak Influence 493 | . 146 142 493 162 . 20 235 Initial 148 | . . 61 59 148 . . 2 Average 176 | . 78 115 283 83 . 2 127 Maximum Alert Level 2 | . . . 2 . . . 1 Low Security (%) 58 | 100 100 100 19 100 100 100 63 Level 1 34 | . . . 66 . . . 36 Level 2 6 | . . . 14 . . . . Level 3 . | . . . . . . . . Level 4 . | . . . . . . . . Level 5 . | . . . . . . . . High Security . | . . . . . . . . Max Security . | . . . . . . . . Squads Dispatched 8 | . 1 1 3 . . 2 1 Investigation . | . . . . . . . . Extermination . | . . . . . . . . Reinforcement 7 | . 1 1 2 . . 2 1 Assault . | . . . . . . . . Garrison 1 | . . . 1 . . . . Intercept . | . . . . . . . . Searches Triggered . | . . . . . . . . Construction Impeded . | . . . . . . . . Haulers Reinforced . | . . . . . . . . Active Scanning Responses . | . . . . . . . . Cargo Convoy Interrupts . | . . . . . . . . Stealth | -11 -10 -9 -9 -9 -7 -7 -6 --------- Run | Yrd Mat Mat Sto Rec Fac DSF Fac Distress Signals 1 | . . . 1 . . . . Communications Jammed . | . . . . . . . . Distress Signals . | . . . . . . . . Times Spotted 86 | . 6 3 42 2 . 11 22 Peak Tracking Total 13 | . 3 2 5 1 . 9 13 Tactical Retreats 9 | . 1 . 1 . . 2 5 Traps | -11 -10 -9 -9 -9 -7 -7 -6 ------- Run | Yrd Mat Mat Sto Rec Fac DSF Fac Traps Triggered 8 | . . . 3 . . 2 3 Indirectly . | . . . . . . . . Trap Hack Attempts . | . . . . . . . . Triggered . | . . . . . . . . Disarmed . | . . . . . . . . Reprogrammed . | . . . . . . . . Reused . | . . . . . . . . Traps Extracted . | . . . . . . . . Installed . | . . . . . . . . Triggered . | . . . . . . . . Machines | -11 -10 -9 -9 -9 -7 -7 -6 ---------- Run | Yrd Mat Mat Sto Rec Fac DSF Fac Machines Disabled 4 | . . . 4 . . . . Max in Single Turn 1 | . . . 1 . . . . Machines Repaired . | . . . . . . . . Machines Dismantled . | . . . . . . . . Machines Sabotaged . | . . . . . . . . Overloaded Fab Kills . | . . . . . . . . Hacking | -11 -10 -9 -9 -9 -7 -7 -6 --------- Run | Yrd Mat Mat Sto Rec Fac DSF Fac Machines Accessed 15 | . 1 . 7 3 1 . 3 Terminals 13 | . 1 . 5 3 1 . 3 Fabricators . | . . . . . . . . Repair Stations 2 | . . . 2 . . . . Recycling Units . | . . . . . . . . Scanalyzers . | . . . . . . . . Garrison Access . | . . . . . . . . Total Hacks 28 | . 1 . 16 6 1 . 4 Successful 12 | . 1 . 6 3 1 . 1 Failed 16 | . . . 10 3 . . 3 Catastrophic 6 | . . . 4 1 . . 1 Database Lockouts . | . . . . . . . . Manual 19 | . . . 10 6 . . 3 Terminals 24 | . 1 . 12 6 1 . 4 Fabricators . | . . . . . . . . Repair Stations 4 | . . . 4 . . . . Recycling Units . | . . . . . . . . Scanalyzers . | . . . . . . . . Garrison Access . | . . . . . . . . Terminal Hacks 8 | . 1 . 3 2 1 . 1 Open Door 1 | . . . 1 . . . . Open DSF 2 | . . . . . 1 . 1 Level Access Points 1 | . . . . 1 . . . Branch Access Points 1 | . . . . 1 . . . Unreport Threat 1 | . . . 1 . . . . Dispatch Records 1 | . 1 . . . . . . Hauler Manifests 1 | . . . 1 . . . . Fabricator Hacks . | . . . . . . . . Repair Station Hacks 3 | . . . 3 . . . . Scan Component 2 | . . . 2 . . . . Repair 1 | . . . 1 . . . . Recycling Unit Hacks . | . . . . . . . . Scanalyzer . | . . . . . . . . Garrison Access Hacks . | . . . . . . . . Unauthorized Hacks 1 | . . . . 1 . . . Terminals 1 | . . . . 1 . . . Operators 1 | . . . . 1 . . . Fabricators . | . . . . . . . . Repair Stations . | . . . . . . . . Recycling Units . | . . . . . . . . Scanalyzers . | . . . . . . . . Garrison Access . | . . . . . . . . Data Cores Recovered 1 | . . . 1 . . . . Used 1 | . . . 1 . . . . Hacking Detections 10 | . 1 . 5 2 . . 2 Full Trace Events . | . . . . . . . . Feedback Events . | . . . . . . . . Feedback Blocked . | . . . . . . . . Robot Schematics Acquired . | . . . . . . . . Robots Built . | . . . . . . . . Authchips . | . . . . . . . . Time . | . . . . . . . . Total Robot Build Rating . | . . . . . . . . Part Schematics Acquired . | . . . . . . . . Parts Built . | . . . . . . . . Authchips . | . . . . . . . . Time . | . . . . . . . . Total Part Build Rating . | . . . . . . . . Parts Repaired 1 | . . . 1 . . . . Time 51 | . . . 51 . . . . Parts Recycled . | . . . . . . . . Recycled Matter . | . . . . . . . . Retrieved Matter . | . . . . . . . . Retrieved Components . | . . . . . . . . Parts Scanalyzed . | . . . . . . . . Part Schematics Acquired . | . . . . . . . . Parts Damaged . | . . . . . . . . Bothacking | -11 -10 -9 -9 -9 -7 -7 -6 ------------ Run | Yrd Mat Mat Sto Rec Fac DSF Fac Used RIF Installer . | . . . . . . . . Robots Hacked . | . . . . . . . . Non-combat . | . . . . . . . . Combat . | . . . . . . . . Robot Hacks Applied . | . . . . . . . . Relay Couplers Released . | . . . . . . . . Fabnet Peak Effective % . | . . . . . . . . Robots Rewired 13 | . . . . 13 . . . Allies Hacked . | . . . . . . . . Hacks Repelled . | . . . . . . . . Allies | -11 -10 -9 -9 -9 -7 -7 -6 -------- Run | Yrd Mat Mat Sto Rec Fac DSF Fac Total Allies 13 | . . . . 13 . . . Largest Group 12 | . . . . 12 12 12 . Highest-Rated Group 171 | . . . . 171 171 171 . Highest-Rated Ally 27 | . . . . 27 27 27 . Total Orders . | . . . . . . . . Ally Attacks 41 | . . . . 15 . 26 . Total Damage 656 | . . . . 183 . 473 . Kills 5 | . . . . 3 . 2 . Allies Corrupted . | . . . . . . . . Allies Melted . | . . . . . . . . Intel | -11 -10 -9 -9 -9 -7 -7 -6 ------- Run | Yrd Mat Mat Sto Rec Fac DSF Fac Robot Analysis Total . | . . . . . . . . Derelict Logs Recovered . | . . . . . . . . Drone Launches . | . . . . . . . . Drone Recoveries . | . . . . . . . . Exploration | -11 -10 -9 -9 -9 -7 -7 -6 ------------- Run | Yrd Mat Mat Sto Rec Fac DSF Fac Turns Passed 3606 | 66 385 118 1687 845 75 86 344 Spaces Moved 2625 | 48 201 69 929 537 66 173 602 Core 231 | 2 . . . 228 . . 1 Treads . | . . . . . . . . Legs 1245 | 46 201 69 929 . . . . Wheels . | . . . . . . . . Hover . | . . . . . . . . Flight 1149 | . . . . 309 66 173 601 Fastest Speed 24 | 50 120 120 120 31 24 24 25 Average Speed 92 | 117 120 120 124 122 24 25 28 Slowest Speed 300 | 120 120 120 190 300 24 28 180 Overloaded Moves . | . . . . . . . . Propulsion Burnouts . | . . . . . . . . Robots Hopped 20 | . . . . 6 . 4 10 Cave-ins Triggered . | . . . . . . . . Exploration Rate (%) 43 | 5 28 10 93 94 3 93 21 Regions Visited 7 Branch Regions 2 Pre-discovered Areas . | . . . . . . . . Known Exits Taken 2 | . . . . 1 1 . . Unknown Exits Taken 4 | 1 1 1 1 . . . . Scrap Searched . | . . . . . . . . Spaces Dug . | . . . . . . . . Terrain Destroyed 9 | . . 7 2 . . . . Melee . | . . . . . . . . Projectile . | . . . . . . . . AOE 9 | . . 7 2 . . . . Terrain Rammed . | . . . . . . . . Walls Destroyed . | . . . . . . . . Machines Disabled . | . . . . . . . . Actions | -11 -10 -9 -9 -9 -7 -7 -6 --------- Run | Yrd Mat Mat Sto Rec Fac DSF Fac Total 3466 | 55 303 84 1268 719 123 213 701 Wait 352 | . 71 . 142 60 49 20 10 Move 2580 | 47 200 68 928 525 65 164 583 Hop 18 | . . . . 5 . 4 9 Pick Up 35 | 2 4 . 18 3 1 3 4 Fast Attach 44 | 6 1 . 17 4 1 . 15 Attach 22 | . . 2 3 1 4 1 11 Detach 12 | . . . 1 3 1 2 5 Swap 31 | . 4 3 14 4 2 . 4 Drop 52 | . 2 1 35 7 . 2 5 Fire 152 | . 21 10 105 . . . 16 Melee 26 | . . . . . . . 26 Ram . | . . . . . . . . Kick . | . . . . . . . . Crush . | . . . . . . . . Escape Stasis 35 | . . . 5 . . 17 13 Rewire 107 | . . . . 107 . . . Trap . | . . . . . . . . Miscellaneous . | . . . . . . . . Route ------- -11/Scrapyard -10/Materials -9/Materials -9/Storage (discovered 2 exits: [*Mat] / *Rec) -9/Recycling -7/Factory -7/DSF -6/Factory History --------- Turn | Location | Event 9 | -11/Scrapyard | Discovered new exit (range 15) 67 | -11/Scrapyard | Entered Materials 212 | -10/Materials | System corruption reached 10% 445 | -10/Materials | Discovered new exit (range 3) 452 | -10/Materials | Entered another Materials area 452 | -9/Materials | Evolved 2 slots: Propulsion x2 562 | -9/Materials | Discovered new exit (range 6) 570 | -9/Materials | Entered Storage 589 | -9/Storage | Build established: Scavenger-Mutant 1371 | -9/Storage | Discovered new exit (range 13) 1488 | -9/Storage | Repaired Adv. Beam Cannon 1768 | -9/Storage | Garrison activated, responded to threat 1789 | -9/Storage | Core integrity fell below 50% 2227 | -9/Storage | Used back door to open Recycling access 2227 | -9/Storage | Discovered new exit (range 4) 2257 | -9/Storage | Entered Recycling 2296 | -9/Recycling | Identified exit to Factory 2652 | -9/Recycling | Build established: Commander-Mutant 2979 | -9/Recycling | Found Scrap Engine 3102 | -9/Recycling | Entered Factory 3102 | -7/Factory | Accompanied by 12 allies 3102 | -7/Factory | Evolved 4 slots: Power x1, Propulsion x2, Utility x1 3128 | -7/Factory | Identified exit to DSF 3177 | -7/Factory | Entered DSF 3177 | -7/DSF | Accompanied by 12 allies 3203 | -7/DSF | Additional patrols routed to DSF 3210 | -7/DSF | Discovered new exit (range 12) 3263 | -7/DSF | Entered Factory 3263 | -6/Factory | Evolved 2 slots: Utility x2 3265 | -6/Factory | Lost 7 allies 3351 | -6/Factory | Spotted B-75 Beast 3390 | -6/Factory | Lost 3 parts (1p2n) 3480 | -6/Factory | Core integrity fell below 50% 3503 | -6/Factory | Core integrity fell below 20% 3543 | -6/Factory | Lost 12 parts (2p5n2u3w) 3607 | -6/Factory | Destroyed by P-60 Hacker with Shock Rifle Last Messages --------------- 03571_ Acquired Chainsword. 03591_ Connecting with Terminal... 03595_ Triggered Stasis Trap. 03595_ A bubble of rippling energy engulfs the area. 03595_ Field strength at 93. 03595_ Field strength at 86. 03596_ Field strength at 79. 03597_ Field strength at 72. 03598_ Field strength at 65. 03599_ Field strength at 59. 03600_ Field strength at 53. 03601_ Field strength at 46. 03602_ Field strength at 39. 03603_ Field strength at 32. 03604_ Field strength at 25. 03604_ VTOL Module destroyed. 03605_ Field strength at 12. 03606_ Field strength at 7. 03607_ Field strength at 2. 03607_ Stasis field depleted. Map ----- +----------------------------------------------------+ | ??????????????????????# # !# #????? | | ??????????????????????# + # #????? | | ??????????????????????# # # #????? | | ??????????????????????## ## ! # #????? | | ???????????????????????# ## # #????? | | ???????????????????????# ############ #????? | | ???????????????????????# ##### #??????????# ###### | | ???????????????????????# #???# #??????????# | | ???????????????????????# #???# #?????????#####+### | | ???????????????????????# #???# #?????????# #? | | ???????????????????????# #???#+#?????????# ]! #? | | ???????????????????????# #?? #????????# ] #? | | ????????????##+????????# ## #????????# #? | | ?????######## ???????# ## #????????# #? | | ???# #####+## ## [ #????????# ! #? | | ????????????# ## #????????########? | | ????????????## ## #????????????????? | | ?????????????# ## /#??#####?????????? | | ?????????????# ####+### #?????????? | | ?????????????# / #?????????? | | ?????????????####### ^ ### #?????????? | | ???????????????????# #??????????????????? | | ?????????????????### ^ A #??????????????????? | | ?????????????????# #??????????????????? | | ?????????????????# u #######????????????? | | ????????????#+#??# p @ +?????????? | | ?????######## #### ##### ########### #?????????? | | ?????# ! # #???? #?????????????????????? | | ?????#! # #???? #?????????????????????? | | ?????# + #???? #?????????????????????? | | ?????# # ^ #????+#?????????????????????? | | ?????# # = #???????????????????????????? | | ?????# ! # = #???????????????????????????? | | ?????##+##### ###?????????????????######### | | ??????# #???# ""#???????????????? | | ??????# #???# ""#??????????????? | | ??????# #???# ""#??????????????? | | ??????# #???# """ T#???????????????? | | ###???# #???# """ ""#????????????????? | | ??# #???# """ ""#?????????????????# | | ??# ##### ""#?????????????????# | | """"?# """ ###?????????????????# | | """"?# """ #???????????????????? | | """" # """ #????????????????????? | | """" # #????????############+## | | """" + #???????? # | | """" # [ #????????? # | | """" ###+############????????""""""""" # "% | | ?# ] #??????????? # " | | ?#! #?????# """"""""" # | +----------------------------------------------------+ Best States ------------- Heat Dissipation 56 Energy Generation 24 Energy Capacity 330 Matter Stores 300 Matter Capacity 300 Sight Range 22 Terrain Scan Density 10 Additional Mass Support 6 Resistance: TH 20 Evasion (%) 65 Offensive Hacking 10 Item Schematics ----------------- None Robot Schematics ------------------ None Fabricated ------------ Nothing Alien Tech Used ----------------- None Achievements -------------- None Challenges ------------ None Game ------ Seed TransmissionSpacefoldFlail Manual? 0 Play Time 00:31:59 Cumulative 184.3 hours Start 2024.06.18 @ 17:48:03 End 2024.06.18 @ 18:18:36 Sessions 1 Manual Loads 0 Difficulty Rogue Special Mode None Game No. 360 Rogue 360 Adventurer 0 Explorer 0 Win Type - Total 0 Types 0/0/0/0/0/0/0/0/0 Lore% 51 Gallery% 67 Achievement% 46 Wizard Run 0 Options --------- Layout 0 ASCII 0 Keyboard 1 Movement Numpad Keybinds 0 Fullscreen 2 Font 18/X11 Map View 76x50 Zoom Use 0% Tactical HUD 1 Map Filters NONE Filters NONE Steam 1 RUN: 96fed984-4e19-4d33-a3f2-55637b781ec6